fUSD/lending_fUSD_20250609
["ID","MTS","AMOUNT","RATE_DAILY","PERIOD"]
[365159697,1749505840122,-573.06273144,0.00019178,2]
[365159699,1749505840131,-303.804144,0.00019178,2]
[365159700,1749505840140,-150.0,0.00019178,2]
[365159702,1749505840150,-2371.80053591,0.00019178,2]
[365159704,1749505840159,-150.0,0.00019178,2]
[365159706,1749505840169,-36430.99096913,0.00019178,2]
[365159708,1749505840178,-480.0,0.00019178,2]
[365159710,1749505840188,-160.804686,0.00019178,2]
[365159712,1749505840197,-160.804686,0.00019178,2]
[365159714,1749505840206,-274.445893,0.00019178,2]
[365159716,1749505840216,-151.858811,0.00019178,2]
[365159718,1749505840225,-230.138801,0.00019178,2]
[365159720,1749505840234,-490.0,0.00019178,2]
[365159722,1749505840244,-490.0,0.00019178,2]
[365159724,1749505840253,-490.0,0.00019178,2]
[365159726,1749505840262,-490.0,0.00019178,2]
[365159728,1749505840272,-480.0,0.00019178,2]
[365159730,1749505840281,-490.0,0.00019178,2]
[365159732,1749505840291,-490.0,0.00019178,2]
[365159734,1749505840300,-490.0,0.00019178,2]
[365159736,1749505840310,-490.0,0.00019178,2]
[365159738,1749505840319,-490.0,0.00019178,2]
[365159740,1749505840329,-470.0,0.00019178,2]
[365159742,1749505840339,-490.0,0.00019178,2]
[365159744,1749505840348,-490.0,0.00019178,2]
[365159746,1749505840357,-490.0,0.00019178,2]
[365159748,1749505840367,-480.0,0.00019178,2]
[365159750,1749505840376,-490.0,0.00019178,2]
[365159751,1749505840386,-490.0,0.00019178,2]
[365159753,1749505840396,-490.0,0.00019178,2]
[365159755,1749505840406,-470.0,0.00019178,2]
[365159757,1749505840416,-490.0,0.00019178,2]
[365159759,1749505840425,-490.0,0.00019178,2]
[365159761,1749505840435,-490.0,0.00019178,2]
[365159763,1749505840445,-154.65385352,0.00019178,2]
[365159765,1749505840454,-490.0,0.00019178,2]
[365159767,1749505840463,-600.0831739,0.00019178,2]
[365159769,1749505840473,-470.0,0.00019178,2]
[365159771,1749505840483,-490.0,0.00019178,2]
[365159773,1749505840493,-480.0,0.00019178,2]
[365159775,1749505840502,-490.0,0.00019178,2]
[365159777,1749505840512,-480.0,0.00019178,2]
[365159779,1749505840521,-490.0,0.00019178,2]
[365159781,1749505840531,-490.0,0.00019178,2]
[365159783,1749505840541,-490.0,0.00019178,2]
[365159785,1749505840551,-198.21839445,0.00019178,2]
[365159787,1749505840561,-490.0,0.00019178,2]
[365159789,1749505840571,-648.08,0.00019178,2]
[365159791,1749505840580,-490.0,0.00019178,2]
[365159793,1749505840590,-490.0,0.00019178,2]
[365159795,1749505840600,-490.0,0.00019178,2]
[365159797,1749505840610,-490.0,0.00019178,2]
[365159799,1749505840619,-490.0,0.00019178,2]
[365159801,1749505840628,-440.29510261,0.00019178,2]
[365159803,1749505840638,-723.43,0.00019178,2]
[365159805,1749505840649,-500.0,0.00019178,2]
[365159807,1749505840658,-490.0,0.00019178,2]
[365159809,1749505840667,-490.0,0.00019178,2]
[365159811,1749505840677,-490.0,0.00019178,2]
[365159813,1749505840686,-364.593156,0.00019178,2]
[365159815,1749505840695,-364.593156,0.00019178,2]
[365159817,1749505840705,-605.18108307,0.00019178,2]
[365159819,1749505840714,-490.0,0.00019178,2]
[365159821,1749505840723,-490.0,0.00019178,2]
[365159823,1749505840732,-490.0,0.00019178,2]
[365159824,1749505840743,-480.0,0.00019178,2]
[365159827,1749505840754,-490.0,0.00019178,2]
[365159829,1749505840763,-480.0,0.00019178,2]
[365159831,1749505840772,-490.0,0.00019178,2]
[365159832,1749505840782,-490.0,0.00019178,2]
[365159834,1749505840792,-649.02,0.00019178,2]
[365159837,1749505840802,-490.0,0.00019178,2]
[365159839,1749505840811,-1010.666632,0.00019178,2]
[365159840,1749505840820,-490.0,0.00019178,2]
[365159842,1749505840830,-480.0,0.00019178,2]
[365159844,1749505840839,-490.0,0.00019178,2]
[365159846,1749505840848,-1010.666632,0.00019178,2]
[365159849,1749505840858,-490.0,0.00019178,2]
[365159851,1749505840868,-490.0,0.00019178,2]
[365159852,1749505840879,-633.04743256,0.00019178,2]
[365159854,1749505840888,-490.0,0.00019178,2]
[365159856,1749505840897,-490.0,0.00019178,2]
[365159858,1749505840907,-490.0,0.00019178,2]
[365159860,1749505840917,-500.0,0.00019178,2]
[365159862,1749505840991,-500.0,0.00019178,2]
[365159863,1749505841000,-500.0,0.00019178,2]
[365159864,1749505841009,-490.0,0.00019178,2]
[365159865,1749505841018,-490.0,0.00019178,2]
[365159866,1749505841027,-490.0,0.00019178,2]
[365159868,1749505841037,-650.01,0.00019178,2]
[365159870,1749505841046,-490.0,0.00019178,2]
[365159872,1749505841055,-680.92,0.00019178,2]
[365159873,1749505841064,-174.32832182,0.00019178,2]
[365159875,1749505841074,-490.0,0.00019178,2]
[365159878,1749505841083,-490.0,0.00019178,2]
[365159879,1749505841093,-490.0,0.00019178,2]
[365159881,1749505841102,-544.47,0.00019178,2]
[365159883,1749505841111,-490.0,0.00019178,2]
[365159885,1749505841121,-1112.76,0.00019178,2]
[365159887,1749505841131,-1616.79,0.00019178,2]
[365159889,1749505841141,-480.0,0.00019178,2]
[365159891,1749505841150,-490.0,0.00019178,2]
[365159893,1749505841159,-490.0,0.00019178,2]
[365159895,1749505841168,-490.0,0.00019178,2]
[365159897,1749505841177,-490.0,0.00019178,2]
[365159899,1749505841187,-539.54,0.00019178,2]
[365159901,1749505841196,-402.76936732,0.00019178,2]
[365159903,1749505841206,-490.0,0.00019178,2]
[365159905,1749505841215,-490.0,0.00019178,2]
[365159907,1749505841225,-480.0,0.00019178,2]
[365159909,1749505841235,-490.0,0.00019178,2]
[365159911,1749505841245,-480.0,0.00019178,2]
[365159913,1749505841254,-1190.05,0.00019178,2]
[365159915,1749505841263,-727.01,0.00019178,2]
[365159917,1749505841273,-480.0,0.00019178,2]
[365159919,1749505841282,-490.0,0.00019178,2]
[365159921,1749505841292,-560.8,0.00019178,2]
[365159923,1749505841301,-490.0,0.00019178,2]
[365159925,1749505841311,-612.19,0.00019178,2]
[365159927,1749505841320,-490.0,0.00019178,2]
[365159929,1749505841329,-480.0,0.00019178,2]
[365159931,1749505841339,-862.54,0.00019178,2]
[365159933,1749505841348,-490.0,0.00019178,2]
[365159935,1749505841357,-644.48,0.00019178,2]
[365159937,1749505841366,-490.0,0.00019178,2]
[365159939,1749505841375,-490.0,0.00019178,2]
[365159941,1749505841384,-593.15,0.00019178,2]
[365159943,1749505841393,-490.0,0.00019178,2]
[365159945,1749505841403,-480.0,0.00019178,2]
[365159947,1749505841412,-812.69,0.00019178,2]
[365159949,1749505841421,-635.87,0.00019178,2]
[365159951,1749505841430,-480.0,0.00019178,2]
[365159953,1749505841439,-640.28,0.00019178,2]
[365159955,1749505841448,-490.0,0.00019178,2]
[365159957,1749505841457,-525.65,0.00019178,2]
[365159959,1749505841467,-490.0,0.00019178,2]
[365159961,1749505841476,-490.0,0.00019178,2]
[365159963,1749505841485,-490.0,0.00019178,2]
[365159964,1749505841494,-913.45,0.00019178,2]
[365159966,1749505841504,-490.0,0.00019178,2]
[365159969,1749505841514,-490.0,0.00019178,2]
[365159970,1749505841523,-286.41655741,0.00019178,2]
[365159972,1749505841532,-490.0,0.00019178,2]
[365159974,1749505841541,-669.78,0.00019178,2]
[365159976,1749505841550,-490.0,0.00019178,2]
[365159978,1749505841560,-490.0,0.00019178,2]
[365159980,1749505841569,-490.0,0.00019178,2]
[365159982,1749505841579,-1345.96,0.00019178,2]
[365159984,1749505841587,-480.0,0.00019178,2]
[365159986,1749505841597,-490.0,0.00019178,2]
[365159988,1749505841606,-490.0,0.00019178,2]
[365159990,1749505841616,-519.16,0.00019178,2]
[365159992,1749505841625,-1075.45,0.00019178,2]
[365159994,1749505841635,-490.0,0.00019178,2]
[365159996,1749505841644,-490.0,0.00019178,2]
[365159998,1749505841654,-490.0,0.00019178,2]
[365160000,1749505841663,-490.0,0.00019178,2]
[365160002,1749505841672,-490.0,0.00019178,2]
[365160004,1749505841681,-490.0,0.00019178,2]
[365160006,1749505841690,-490.0,0.00019178,2]
[365160008,1749505841699,-480.0,0.00019178,2]
[365160010,1749505841709,-490.0,0.00019178,2]
[365160012,1749505841718,-490.0,0.00019178,2]
[365160014,1749505841727,-1452.8,0.00019178,2]
[365160016,1749505841737,-490.0,0.00019178,2]
[365160018,1749505841746,-490.0,0.00019178,2]
[365160020,1749505841755,-530.11,0.00019178,2]
[365160022,1749505841764,-518.14074322,0.00019178,2]
[365160024,1749505841774,-490.0,0.00019178,2]
[365160025,1749505841783,-883.83,0.00019178,2]
[365160027,1749505841793,-1078.8,0.00019178,2]
[365160029,1749505841802,-569.66,0.00019178,2]
[365160031,1749505841812,-490.0,0.00019178,2]
[365160033,1749505841821,-460.0,0.00019178,2]
[365160035,1749505841830,-490.0,0.00019178,2]
[365160037,1749505841839,-500.0,0.00019178,2]
[365160039,1749505841849,-490.0,0.00019178,2]
[365160041,1749505841859,-609.31,0.00019178,2]
[365160043,1749505841870,-480.0,0.00019178,2]
[365160045,1749505841880,-1035.11,0.00019178,2]
[365160046,1749505841890,-480.0,0.00019178,2]
[365160047,1749505841901,-380.0,0.00019178,2]
[365160048,1749505841910,-490.0,0.00019178,2]
[365160049,1749505841920,-490.0,0.00019178,2]
[365160050,1749505841930,-490.0,0.00019178,2]
[365160051,1749505841939,-490.0,0.00019178,2]
[365160052,1749505841950,-490.0,0.00019178,2]
[365160053,1749505841960,-490.0,0.00019178,2]
[365160054,1749505841970,-490.0,0.00019178,2]
[365160056,1749505841980,-886.66,0.00019178,2]
[365160058,1749505841990,-793.61,0.00019178,2]
[365160060,1749505841999,-490.0,0.00019178,2]
[365160061,1749505842009,-480.0,0.00019178,2]
[365160063,1749505842018,-562.05,0.00019178,2]
[365160065,1749505842028,-1229.55,0.00019178,2]
[365160067,1749505842038,-480.0,0.00019178,2]
[365160069,1749505842047,-490.0,0.00019178,2]
[365160071,1749505842058,-490.0,0.00019178,2]
[365160072,1749505842068,-490.0,0.00019178,2]
[365160073,1749505842077,-490.0,0.00019178,2]
[365160074,1749505842087,-642.35,0.00019178,2]
[365160075,1749505842096,-490.0,0.00019178,2]
[365160076,1749505842110,-490.0,0.00019178,2]
[365160078,1749505842120,-490.0,0.00019178,2]
[365160080,1749505842130,-845.5,0.00019178,2]
[365160082,1749505842140,-480.0,0.00019178,2]
[365160084,1749505842150,-480.0,0.00019178,2]
[365160086,1749505842160,-480.0,0.00019178,2]
[365160087,1749505842169,-490.0,0.00019178,2]
[365160088,1749505842179,-490.0,0.00019178,2]
[365160089,1749505842188,-490.0,0.00019178,2]
[365160090,1749505842198,-1346.48,0.00019178,2]
[365160091,1749505842208,-490.0,0.00019178,2]
[365160092,1749505842217,-490.0,0.00019178,2]
[365160093,1749505842227,-631.12,0.00019178,2]
[365160094,1749505842236,-222.80305285,0.00019178,2]
[365160095,1749505842246,-490.0,0.00019178,2]
[365160096,1749505842256,-490.0,0.00019178,2]
[365160097,1749505842266,-490.0,0.00019178,2]
[365160098,1749505842276,-1081.67,0.00019178,2]
[365160099,1749505842285,-490.0,0.00019178,2]
[365160100,1749505842294,-480.0,0.00019178,2]
[365160101,1749505842304,-534.09,0.00019178,2]
[365160102,1749505842314,-1268.45,0.00019178,2]
[365160103,1749505842323,-490.0,0.00019178,2]
[365160104,1749505842332,-480.0,0.00019178,2]
[365160105,1749505842341,-675.92,0.00019178,2]
[365160106,1749505842351,-480.0,0.00019178,2]
[365160107,1749505842360,-490.0,0.00019178,2]
[365160108,1749505842370,-474.58661117,0.00019178,2]
[365160109,1749505842379,-514.79,0.00019178,2]
[365160110,1749505842389,-480.0,0.00019178,2]
[365160111,1749505842399,-490.0,0.00019178,2]
[365160112,1749505842408,-943.36,0.00019178,2]
[365160113,1749505842418,-490.0,0.00019178,2]
[365160114,1749505842428,-1014.55,0.00019178,2]
[365160115,1749505842438,-541.55308384,0.00019178,2]
[365160116,1749505842448,-1337.57,0.00019178,2]
[365160117,1749505842458,-1069.08,0.00019178,2]
[365160118,1749505842467,-490.0,0.00019178,2]
[365160119,1749505842478,-490.0,0.00019178,2]
[365160120,1749505842488,-751.43,0.00019178,2]
[365160121,1749505842497,-632.19,0.00019178,2]
[365160122,1749505842507,-1077.57,0.00019178,2]
[365160123,1749505842516,-490.0,0.00019178,2]
[365160124,1749505842526,-621.91,0.00019178,2]
[365160125,1749505842536,-490.0,0.00019178,2]
[365160126,1749505842546,-480.0,0.00019178,2]
[365160127,1749505842556,-648.18,0.00019178,2]
[365160128,1749505842566,-713.89,0.00019178,2]
[365160129,1749505842576,-490.0,0.00019178,2]
[365160130,1749505842585,-490.0,0.00019178,2]
[365160132,1749505842595,-490.0,0.00019178,2]
[365160134,1749505842604,-480.0,0.00019178,2]
[365160136,1749505842614,-490.0,0.00019178,2]
[365160137,1749505842624,-554.11,0.00019178,2]
[365160138,1749505842634,-558.76,0.00019178,2]
[365160139,1749505842643,-1273.2,0.00019178,2]
[365160140,1749505842653,-783.19,0.00019178,2]
[365160141,1749505842663,-490.0,0.00019178,2]
[365160142,1749505842673,-1470.55,0.00019178,2]
[365160143,1749505842682,-483.72029228,0.00019178,2]
[365160144,1749505842692,-480.0,0.00019178,2]
[365160145,1749505842702,-801.8,0.00019178,2]
[365160146,1749505842712,-480.0,0.00019178,2]
[365160147,1749505842722,-490.0,0.00019178,2]
[365160148,1749505842732,-490.0,0.00019178,2]
[365160150,1749505842742,-480.0,0.00019178,2]
[365160151,1749505842752,-696.21,0.00019178,2]
[365160153,1749505842762,-480.0,0.00019178,2]
[365160155,1749505842772,-196.22743202,0.00019178,2]
[365160157,1749505842781,-490.0,0.00019178,2]
[365160159,1749505842791,-480.0,0.00019178,2]
[365160160,1749505842801,-490.0,0.00019178,2]
[365160162,1749505842811,-490.0,0.00019178,2]
[365160163,1749505842820,-541.37468774,0.00019178,2]
[365160164,1749505842830,-490.0,0.00019178,2]
[365160165,1749505842840,-490.0,0.00019178,2]
[365160166,1749505842850,-490.0,0.00019178,2]
[365160167,1749505842860,-193.65707478,0.00019178,2]
[365160168,1749505842871,-490.0,0.00019178,2]
[365160169,1749505842883,-470.0,0.00019178,2]
[365160170,1749505842892,-490.0,0.00019178,2]
[365160171,1749505842902,-490.0,0.00019178,2]
[365160173,1749505842911,-420.0,0.00019178,2]
[365160175,1749505842921,-490.0,0.00019178,2]
[365160177,1749505842931,-480.0,0.00019178,2]
[365160179,1749505842941,-169.64471147,0.00019178,2]
[365160181,1749505842952,-490.0,0.00019178,2]
[365160183,1749505842962,-522.66,0.00019178,2]
[365160185,1749505842972,-480.0,0.00019178,2]
[365160187,1749505842981,-390.08231884,0.00019178,2]
[365160188,1749505842991,-480.0,0.00019178,2]
[365160189,1749505843000,-480.0,0.00019178,2]
[365160190,1749505843010,-480.0,0.00019178,2]
[365160191,1749505843019,-480.0,0.00019178,2]
[365160192,1749505843029,-480.0,0.00019178,2]
[365160193,1749505843038,-490.0,0.00019178,2]
[365160194,1749505843048,-516.09720208,0.00019178,2]
[365160195,1749505843058,-490.0,0.00019178,2]
[365160196,1749505843068,-672.45,0.00019178,2]
[365160197,1749505843078,-490.0,0.00019178,2]
[365160198,1749505843088,-490.0,0.00019178,2]
[365160199,1749505843098,-662.92,0.00019178,2]
[365160200,1749505843107,-490.0,0.00019178,2]
[365160201,1749505843116,-480.0,0.00019178,2]
[365160202,1749505843126,-258.45,0.00019178,2]
[365160203,1749505843135,-490.0,0.00019178,2]
[365160204,1749505843146,-583.22,0.00019178,2]
[365160205,1749505843155,-485.74453431,0.00019178,2]
[365160206,1749505843165,-490.0,0.00019178,2]
[365160207,1749505843174,-250.0,0.00019178,2]
[365160208,1749505843183,-480.0,0.00019178,2]
[365160209,1749505843193,-490.0,0.00019178,2]
[365160210,1749505843202,-490.0,0.00019178,2]
[365160211,1749505843212,-480.0,0.00019178,2]
[365160212,1749505843221,-823.02,0.00019178,2]
[365160213,1749505843231,-490.0,0.00019178,2]
[365160214,1749505843240,-736.07,0.00019178,2]
[365160215,1749505843250,-801.12,0.00019178,2]
[365160216,1749505843259,-490.0,0.00019178,2]
[365160217,1749505843268,-226.80722037,0.00019178,2]
[365160218,1749505843278,-1000.0,0.00019178,2]
[365160219,1749505843287,-490.0,0.00019178,2]
[365160220,1749505843296,-3673.1,0.00019178,2]
[365160221,1749505843306,-490.0,0.00019178,2]
[365160222,1749505843316,-574.54,0.00019178,2]
[365160223,1749505843325,-585.23482684,0.00019178,2]
[365160224,1749505843335,-761.53,0.00019178,2]
[365160225,1749505843344,-586.18,0.00019178,2]
[365160226,1749505843353,-480.0,0.00019178,2]
[365160228,1749505843363,-2938.74,0.00019178,2]
[365160229,1749505843372,-790.33,0.00019178,2]
[365160230,1749505843382,-490.0,0.00019178,2]
[365160231,1749505843391,-490.0,0.00019178,2]
[365160232,1749505843401,-537.5,0.00019178,2]
[365160233,1749505843410,-490.0,0.00019178,2]
[365160235,1749505843419,-586.9,0.00019178,2]
[365160236,1749505843430,-490.0,0.00019178,2]
[365160237,1749505843439,-1131.27,0.00019178,2]
[365160238,1749505843451,-490.0,0.00019178,2]
[365160239,1749505843462,-486.79129805,0.00019178,2]
[365160240,1749505843472,-493.84,0.00019178,2]
[365160241,1749505843481,-480.0,0.00019178,2]
[365160242,1749505843490,-754.92,0.00019178,2]
[365160243,1749505843500,-496.54,0.00019178,2]
[365160244,1749505843509,-980.32,0.00019178,2]
[365160245,1749505843519,-480.0,0.00019178,2]
[365160246,1749505843528,-491.86,0.00019178,2]
[365160247,1749505843538,-490.0,0.00019178,2]
[365160248,1749505843547,-490.0,0.00019178,2]
[365160249,1749505843557,-659.46,0.00019178,2]
[365160250,1749505843567,-490.0,0.00019178,2]
[365160251,1749505843577,-480.0,0.00019178,2]
[365160252,1749505843586,-490.0,0.00019178,2]
[365160253,1749505843595,-415.44638242,0.00019178,2]
[365160254,1749505843605,-490.0,0.00019178,2]
[365160255,1749505843614,-150.0,0.00019178,2]
[365160256,1749505843623,-490.0,0.00019178,2]
[365160257,1749505843633,-693.31,0.00019178,2]
[365160258,1749505843643,-444.26928861,0.00019178,2]
[365160259,1749505843652,-200.0,0.00019178,2]
[365160260,1749505843662,-480.0,0.00019178,2]
[365160261,1749505843671,-1654.58,0.00019178,2]
[365160262,1749505843681,-500.0,0.00019178,2]
[365160263,1749505843691,-492.26,0.00019178,2]
[365160264,1749505843700,-1764.12,0.00019178,2]
[365160265,1749505843710,-600.22,0.00019178,2]
[365160266,1749505843719,-150.0,0.00019178,2]
[365160267,1749505843729,-150.0,0.00019178,2]
[365160268,1749505843738,-762.31,0.00019178,2]
[365160269,1749505843747,-480.0,0.00019178,2]
[365160270,1749505843757,-176.21195036,0.00019178,2]
[365160271,1749505843766,-150.0,0.00019178,2]
[365160272,1749505843776,-1248.33,0.00019178,2]
[365160273,1749505843786,-480.0,0.00019178,2]
[365160274,1749505843796,-22013.02,0.00019178,2]
[365160275,1749505843805,-150.0,0.00019178,2]
[365160276,1749505843815,-490.0,0.00019178,2]
[365160277,1749505843824,-2442.75,0.00019178,2]
[365160278,1749505843834,-480.0,0.00019178,2]
[365160279,1749505843843,-150.0,0.00019178,2]
[365160280,1749505843853,-490.0,0.00019178,2]
[365160281,1749505843863,-480.0,0.00019178,2]
[365160282,1749505843875,-466.78132379,0.00019178,2]
[365160283,1749505843885,-609.93,0.00019178,2]
[365160284,1749505843895,-150.0,0.00019178,2]
[365160285,1749505843905,-490.0,0.00019178,2]
[365160286,1749505843915,-490.0,0.00019178,2]
[365160287,1749505843925,-988.94,0.00019178,2]
[365160288,1749505843934,-498.25,0.00019178,2]
[365160289,1749505843944,-480.0,0.00019178,2]
[365160290,1749505843955,-490.0,0.00019178,2]
[365160291,1749505843964,-490.0,0.00019178,2]
[365160292,1749505843974,-1715.74,0.00019178,2]
[365160293,1749505843983,-690.76,0.00019178,2]
[365160294,1749505843993,-490.0,0.00019178,2]
[365160295,1749505844003,-549.41936798,0.00019178,2]
[365160296,1749505844013,-1189.59,0.00019178,2]
[365160297,1749505844025,-500.0,0.00019178,2]
[365160298,1749505844036,-490.0,0.00019178,2]
[365160299,1749505844045,-989.49,0.00019178,2]
[365160300,1749505844055,-571.45,0.00019178,2]
[365160301,1749505844065,-928.71,0.00019178,2]
[365160302,1749505844075,-2350.31,0.00019178,2]
[365160303,1749505844089,-1264.31,0.00019178,2]
[365160304,1749505844099,-490.0,0.00019178,2]
[365160305,1749505844108,-200.0,0.00019178,2]
[365160306,1749505844118,-1354.02,0.00019178,2]
[365160307,1749505844127,-685.55,0.00019178,2]
[365160308,1749505844137,-1082.19,0.00019178,2]
[365160309,1749505844146,-490.0,0.00019178,2]
[365160310,1749505844155,-1131.15,0.00019178,2]
[365160311,1749505844166,-2694.05,0.00019178,2]
[365160312,1749505844176,-490.0,0.00019178,2]
[365160313,1749505844185,-931.9,0.00019178,2]
[365160314,1749505844195,-1853.72,0.00019178,2]
[365160315,1749505844205,-490.0,0.00019178,2]
[365160316,1749505844215,-490.0,0.00019178,2]
[365160317,1749505844225,-1170.92,0.00019178,2]
[365160318,1749505844234,-490.0,0.00019178,2]
[365160319,1749505844244,-1121.52,0.00019178,2]
[365160320,1749505844254,-3711.47,0.00019178,2]
[365160321,1749505844263,-480.0,0.00019178,2]
[365160322,1749505844273,-1000.0,0.00019178,2]
[365160323,1749505844283,-976.41,0.00019178,2]
[365160324,1749505844292,-513.94,0.00019178,2]
[365160325,1749505844302,-490.0,0.00019178,2]
[365160326,1749505844311,-490.0,0.00019178,2]
[365160327,1749505844321,-490.0,0.00019178,2]
[365160328,1749505844330,-5578.96,0.00019178,2]
[365160329,1749505844340,-795.61,0.00019178,2]
[365160330,1749505844349,-2341.74,0.00019178,2]
[365160331,1749505844359,-616.39,0.00019178,2]
[365160332,1749505844368,-680.92,0.00019178,2]
[365160333,1749505844378,-687.79,0.00019178,2]
[365160334,1749505844388,-490.0,0.00019178,2]
[365160335,1749505844398,-150.0,0.00019178,2]
[365160336,1749505844407,-2783.44,0.00019178,2]
[365160337,1749505844417,-2985.0,0.00019178,2]
[365160338,1749505844428,-617.79,0.00019178,2]
[365160339,1749505844436,-490.0,0.00019178,2]
[365160340,1749505844447,-490.0,0.00019178,2]
[365160341,1749505844457,-490.0,0.00019178,2]
[365160342,1749505844466,-490.0,0.00019178,2]
[365160343,1749505844476,-931.63,0.00019178,2]
[365160344,1749505844486,-1384.66,0.00019178,2]
[365160345,1749505844496,-1211.54,0.00019178,2]
[365160346,1749505844505,-2938.8,0.00019178,2]
[365160347,1749505844515,-490.0,0.00019178,2]
[365160348,1749505844524,-1356.04,0.00019178,2]
[365160349,1749505844534,-561.10357882,0.00019178,2]
[365160350,1749505844544,-490.0,0.00019178,2]
[365160351,1749505844553,-1043.72,0.00019178,2]
[365160352,1749505844563,-490.0,0.00019178,2]
[365160353,1749505844573,-2060.31,0.00019178,2]
[365160354,1749505844582,-490.0,0.00019178,2]
[365160355,1749505844592,-2694.17,0.00019178,2]
[365160356,1749505844602,-961.23,0.00019178,2]
[365160357,1749505844611,-500.0,0.00019178,2]
[365160358,1749505844620,-490.0,0.00019178,2]
[365160359,1749505844630,-5291.38,0.00019178,2]
[365160360,1749505844640,-749.91,0.00019178,2]
[365160361,1749505844649,-645.48,0.00019178,2]
[365160362,1749505844659,-490.0,0.00019178,2]
[365160363,1749505844670,-1362.15,0.00019178,2]
[365160364,1749505844680,-720.48,0.00019178,2]
[365160365,1749505844690,-1270.54,0.00019178,2]
[365160366,1749505844700,-555.43,0.00019178,2]
[365160367,1749505844711,-490.0,0.00019178,2]
[365160368,1749505844721,-490.0,0.00019178,2]
[365160369,1749505844731,-490.0,0.00019178,2]
[365160370,1749505844740,-1114.61,0.00019178,2]
[365160371,1749505844750,-490.0,0.00019178,2]
[365160372,1749505844759,-960.15,0.00019178,2]
[365160373,1749505844768,-1309.18,0.00019178,2]
[365160374,1749505844778,-490.0,0.00019178,2]
[365160375,1749505844789,-500.0,0.00019178,2]
[365160376,1749505844799,-212.52553549,0.00019178,2]
[365160377,1749505844809,-200.21159355,0.00019178,2]
[365160378,1749505844818,-490.0,0.00019178,2]
[365160379,1749505844828,-490.0,0.00019178,2]
[365160380,1749505844838,-490.0,0.00019178,2]
[365160381,1749505844848,-691.93,0.00019178,2]
[365160382,1749505844857,-758.66,0.00019178,2]
[365160383,1749505844868,-490.0,0.00019178,2]
[365160384,1749505844883,-490.0,0.00019178,2]
[365160385,1749505844893,-1626.31,0.00019178,2]
[365160386,1749505844903,-629.07,0.00019178,2]
[365160387,1749505844913,-1086.43,0.00019178,2]
[365160388,1749505844923,-1306.59,0.00019178,2]
[365160389,1749505844934,-988.78,0.00019178,2]
[365160390,1749505844944,-656.06,0.00019178,2]
[365160391,1749505844955,-430.5195303,0.00019178,2]
[365160392,1749505844966,-490.0,0.00019178,2]
[365160393,1749505844976,-490.0,0.00019178,2]
[365160394,1749505844987,-640.23,0.00019178,2]
[365160395,1749505844997,-490.0,0.00019178,2]
[365160396,1749505845008,-1623.53,0.00019178,2]
[365160397,1749505845018,-543.78,0.00019178,2]